bitfinex/quotes_BTCUSD_20240819
["timestamp","ask_amount","ask_price","bid_price","bid_amount"]
[1724076891077,0.4816,58444.0,58430.0,0.1558]
[1724076891078,0.18725,58442.0,58431.0,0.001]
[1724076891266,0.01590123,58441.0,58431.0,0.001]
[1724076891462,0.014,58436.0,58431.0,0.001]
[1724076891662,0.014,58436.0,58430.0,0.1558]
[1724076891870,0.01590092,58435.0,58430.0,0.1558]
[1724076892084,0.014,58436.0,58430.0,0.1558]
[1724076892085,0.01590092,58434.0,58432.0,0.171137]
[1724076892296,0.17134877,58440.0,58432.0,0.171139]
[1724076892491,0.01590067,58439.0,58432.0,0.321639]
[1724076892690,0.17134877,58440.0,58432.0,0.321639]
[1724076892691,0.01590067,58438.0,58432.0,0.1505]
[1724076892986,0.171106,58443.0,58432.0,0.1505]
[1724076892987,0.01589974,58437.0,58432.0,0.1505]
[1724076893167,0.01589974,58436.0,58432.0,0.1505]
[1724076893378,0.01589974,58435.0,58432.0,0.1505]
[1724076893616,0.18724851,58434.0,58432.0,0.1505]
[1724076893800,0.01589974,58433.0,58432.0,0.1505]
[1724076894217,0.1870322,58433.0,58432.0,0.1505]
[1724076894422,0.0158962,58433.0,58432.0,0.1505]
[1724076894868,0.17134877,58434.0,58432.0,0.1505]
[1724076895040,0.171142,58431.0,58430.0,0.000821]
[1724076895242,0.70066856,58431.0,58430.0,0.000821]
[1724076895442,0.35838456,58431.0,58430.0,0.000821]
[1724076895965,0.18724256,58431.0,58430.0,0.000821]
[1724076896386,0.01589379,58431.0,58430.0,0.000821]
[1724076897680,0.02289379,58431.0,58430.0,0.001821]
[1724076897897,0.02289379,58431.0,58430.0,0.0046102]
[1724076898145,0.02289012,58431.0,58430.0,0.0046102]
[1724076898344,0.02289012,58431.0,58430.0,0.000821]
[1724076898548,0.02689012,58431.0,58430.0,0.000821]
[1724076898760,0.69577477,58431.0,58430.0,0.000821]
[1724076898963,1.31265411,58431.0,58430.0,0.000821]
[1724076899381,1.55113338,58431.0,58430.0,0.000821]
[1724076899783,0.171171,58421.0,58420.0,0.1589]
[1724076900004,0.01589061,58421.0,58420.0,0.1589]
[1724076900734,0.01589061,58421.0,58415.0,0.1597]
[1724076900923,0.01589061,58420.0,58415.0,0.1597]
[1724076901202,0.01589061,58419.0,58416.0,0.00274601]
[1724076901423,0.01589061,58418.0,58416.0,0.00274601]
[1724076901649,0.34251577,58423.0,58420.0,0.003]
[1724076902072,0.171171,58421.0,58420.0,0.003]
[1724076902261,0.18705795,58421.0,58415.0,0.1597]
[1724076902463,0.001,58419.0,58416.0,0.00374601]
[1724076902669,0.01588695,58418.0,58416.0,0.00374601]
[1724076902880,0.01588695,58417.0,58416.0,0.16014601]
[1724076903086,0.001,58419.0,58418.0,0.17118]
[1724076903290,0.001,58419.0,58418.0,0.79424]
[1724076903495,0.001,58419.0,58418.0,0.2807]
[1724076903708,0.01688253,58419.0,58418.0,0.2807]
[1724076903908,0.01688253,58419.0,58418.0,0.15874601]
[1724076904061,0.01588253,58419.0,58418.0,0.156]
[1724076904426,0.01588253,58419.0,58418.0,0.15874601]
[1724076904621,0.01988103,58419.0,58418.0,0.15874601]
[1724076904853,0.01588103,58419.0,58418.0,0.00274601]
[1724076905055,0.35840656,58419.0,58416.0,0.000821]
[1724076905262,0.18706079,58418.0,58416.0,0.000821]
[1724076905469,0.01588079,58417.0,58416.0,0.000821]
[1724076905698,0.01588375,58418.0,58416.0,0.000821]
[1724076906950,0.011,58419.0,58418.0,0.34236]
[1724076907168,0.025,58419.0,58418.0,1.43974877]
[1724076907410,0.025,58419.0,58418.0,2.40304]
[1724076907411,0.011,58419.0,58418.0,2.40304]
[1724076907616,0.00090311,58432.0,58418.0,2.40304]
[1724076907617,0.00090311,58432.0,58420.0,0.342347]
[1724076907825,0.01590165,58431.0,58418.0,1.7291]
[1724076908029,0.00090311,58432.0,58419.0,0.1]
[1724076908030,0.01590165,58430.0,58419.0,0.1]
[1724076908230,0.01590165,58429.0,58426.0,0.1537]
[1724076908431,0.01590165,58428.0,58426.0,0.1537]
[1724076908651,0.01590165,58427.0,58426.0,0.1537]
[1724076908855,0.01590165,58431.0,58426.0,0.2537]
[1724076909056,0.01590165,58431.0,58429.0,0.171146]
[1724076909266,0.01590165,58431.0,58430.0,0.667133]
[1724076909466,0.01490311,58432.0,58431.0,0.171142]
[1724076909677,0.01490311,58432.0,58431.0,0.667126]
[1724076909884,0.01490311,58432.0,58431.0,1.00941]
[1724076910088,0.01490311,58432.0,58431.0,1.6537]
[1724076910289,0.01680721,58432.0,58431.0,1.6537]
[1724076910502,0.01680721,58432.0,58431.0,0.1537]
[1724076910628,0.171142,58431.0,58420.0,0.1233]
[1724076910848,0.003,58429.0,58421.0,0.33537]
[1724076911054,0.0159041,58428.0,58421.0,0.1642]
[1724076911272,0.0159041,58427.0,58422.0,0.171167]
[1724076911473,0.0159041,58426.0,58421.0,0.1642]
[1724076911676,0.17134877,58431.0,58421.0,0.1642]
[1724076911897,0.01590036,58430.0,58421.0,0.1642]
[1724076912099,0.01590036,58429.0,58421.0,0.335371]
[1724076912303,0.01590036,58428.0,58421.0,0.336371]
[1724076912545,0.01090311,58432.0,58426.0,0.855782]
[1724076912546,0.01590036,58427.0,58426.0,0.855782]
[1724076912772,0.01090311,58432.0,58431.0,0.1511]
[1724076912986,0.01090311,58432.0,58431.0,2.164526]
[1724076913183,0.01090311,58432.0,58431.0,2.50681]
[1724076913402,0.01090311,58432.0,58431.0,2.849094]
[1724076913605,0.01090311,58432.0,58431.0,3.27364277]
[1724076913813,0.00090311,58432.0,58431.0,3.27364277]
[1724076914225,0.00090311,58432.0,58431.0,3.61592677]
[1724076914424,0.00090311,58432.0,58431.0,3.62624904]
[1724076914629,0.00090311,58432.0,58431.0,3.62920666]
[1724076914827,0.00190311,58432.0,58431.0,3.62624904]
[1724076915234,0.00190311,58432.0,58431.0,3.62924904]
[1724076915666,0.00190311,58432.0,58431.0,3.28396504]
[1724076915866,0.00149114,58432.0,58431.0,3.28396504]
[1724076916037,0.00249114,58432.0,58431.0,3.29192266]
[1724076916279,0.00249114,58432.0,58431.0,3.63124904]
[1724076916659,0.00349114,58432.0,58431.0,3.29096504]
[1724076916858,0.00349114,58432.0,58431.0,3.29392266]
[1724076917056,0.00349114,58432.0,58431.0,3.29192266]
[1724076917277,0.00149114,58432.0,58431.0,3.63620666]
[1724076917468,0.00049114,58432.0,58431.0,3.63024904]
[1724076917694,0.00049114,58432.0,58431.0,3.62724904]
[1724076917906,0.00149114,58432.0,58431.0,3.29096504]
[1724076918277,0.00249114,58432.0,58431.0,3.29396504]
[1724076919045,0.00149114,58432.0,58431.0,3.28696504]
[1724076919452,0.00249114,58432.0,58431.0,3.29396504]
[1724076920038,0.00249114,58432.0,58431.0,3.29796504]
[1724076920282,0.00249114,58432.0,58431.0,3.64120666]
[1724076920454,0.00249114,58432.0,58431.0,3.98349066]
[1724076920655,0.00090311,58442.0,58441.0,1.540012]
[1724076920860,0.00090311,58442.0,58441.0,2.13066077]
[1724076921222,0.00090311,58442.0,58441.0,3.63066077]
[1724076921625,0.00090311,58442.0,58441.0,3.63266077]
[1724076921844,0.00090311,58442.0,58441.0,3.63466077]
[1724076922046,0.00190311,58442.0,58441.0,3.63966077]
[1724076922300,0.00190311,58442.0,58441.0,3.63766077]
[1724076922513,0.00190311,58442.0,58441.0,3.97784339]
[1724076922514,0.00090311,58442.0,58441.0,3.97784339]
[1724076922713,0.00090311,58442.0,58441.0,3.63466077]
[1724076922928,0.00190311,58442.0,58441.0,3.64066077]
[1724076923117,0.00190311,58442.0,58441.0,3.64161839]
[1724076923645,0.00290311,58442.0,58441.0,4.0080423]
[1724076923846,0.00190311,58442.0,58441.0,3.6518173]
[1724076924056,0.00090311,58442.0,58441.0,3.6458173]
[1724076924261,0.00190311,58442.0,58441.0,3.6598173]
[1724076924463,0.00290311,58442.0,58441.0,4.0020423]
[1724076925078,0.00390311,58442.0,58441.0,4.0160423]
[1724076925273,0.00290311,58442.0,58441.0,4.0020423]
[1724076925920,0.00290311,58442.0,58441.0,3.55740632]
[1724076926143,0.00390311,58442.0,58441.0,3.57140632]
[1724076927515,0.00390311,58442.0,58441.0,3.67140632]
[1724076927727,0.00390311,58442.0,58441.0,3.65740632]
[1724076927927,0.00090311,58442.0,58441.0,3.64340632]
[1724076928090,0.00090311,58442.0,58441.0,3.67140632]
[1724076928292,0.00090311,58442.0,58441.0,3.67636394]
[1724076928497,0.00090311,58442.0,58441.0,3.66236394]
[1724076928907,0.00090311,58442.0,58441.0,4.00458894]
[1724076929361,0.00090311,58442.0,58441.0,3.67040632]
[1724076929964,0.00090311,58442.0,58441.0,3.65836394]
[1724076930118,0.00090311,58442.0,58441.0,4.00258894]
[1724076930331,0.00090311,58442.0,58441.0,3.64636394]
[1724076930727,0.00190311,58442.0,58441.0,3.66036394]
[1724076931272,0.00090311,58442.0,58441.0,3.66036394]
[1724076931453,0.00190311,58442.0,58441.0,4.00258894]
[1724076931654,0.00290311,58442.0,58441.0,4.01858894]
[1724076932294,0.00247832,58442.0,58441.0,4.01858894]
[1724076932744,0.00247832,58442.0,58441.0,3.67636394]
[1724076934564,0.00247832,58442.0,58441.0,4.01858894]
[1724076934776,0.00247832,58442.0,58441.0,3.67636394]
[1724076935159,0.00228415,58442.0,58441.0,3.67636394]
[1724076935361,0.00228415,58442.0,58441.0,3.67240632]
[1724076935564,0.00228415,58442.0,58441.0,3.67140632]
[1724076936943,0.00228415,58442.0,58441.0,2.90988132]
[1724076937189,0.00228415,58442.0,58441.0,1.71185755]
[1724076937396,0.00228415,58442.0,58441.0,0.03054664]
[1724076937799,0.00128415,58442.0,58441.0,0.185112]
[1724076937948,0.00128415,58442.0,58441.0,1.68759968]
[1724076938148,0.00128415,58442.0,58441.0,2.02882468]
[1724076938555,0.01128415,58442.0,58441.0,2.02982468]
[1724076938755,0.01028415,58442.0,58441.0,2.01682468]
[1724076939200,0.01028415,58442.0,58441.0,2.11682468]
[1724076939402,0.00028415,58442.0,58441.0,1.60248768]
[1724076939614,0.14818415,58442.0,58441.0,0.00248768]
[1724076939836,0.14818415,58442.0,58431.0,0.000821]
[1724076939837,0.80317033,58442.0,58431.0,0.000821]
[1724076940051,0.463639,58432.0,58431.0,0.000821]
[1724076940264,0.97726577,58432.0,58431.0,0.000821]
[1724076940477,1.68069906,58432.0,58431.0,0.000821]
[1724076940686,1.33642106,58432.0,58431.0,0.000821]
[1724076940892,0.342303,58428.0,58416.0,0.000821]
[1724076941100,0.1553,58423.0,58416.0,0.000821]
[1724076941307,0.513549,58417.0,58416.0,0.000821]
[1724076941505,0.84019777,58417.0,58416.0,0.000821]
[1724076941912,0.49783177,58417.0,58416.0,0.000821]
[1724076942114,1.18256377,58417.0,58416.0,0.000821]
[1724076942325,1.30112015,58417.0,58416.0,0.000821]
[1724076942525,1.18556377,58417.0,58416.0,0.000821]
[1724076942770,1.18256377,58417.0,58416.0,0.000821]
[1724076942975,1.016672,58413.0,58411.0,0.0002]
[1724076943168,1.55732077,58413.0,58411.0,0.0002]
[1724076943379,0.674336,58407.0,58397.0,0.51404632]
[1724076943585,0.50226077,58407.0,58397.0,0.51404632]
[1724076943788,0.62466077,58407.0,58397.0,0.51404632]
[1724076943990,0.62466077,58407.0,58391.0,0.0002]
[1724076944424,0.96708477,58407.0,58391.0,0.0002]
[1724076944626,0.96708477,58407.0,58391.0,0.171459]
[1724076944907,0.96808477,58407.0,58391.0,0.0002]
[1724076945110,1.78598295,58407.0,58391.0,0.0002]
[1724076945523,1.80198295,58407.0,58391.0,0.0002]
[1724076945729,1.79698295,58407.0,58406.0,0.0125555]
[1724076945924,1.45055895,58407.0,58406.0,0.0125555]
[1724076946176,1.31950877,58407.0,58406.0,0.0125555]
[1724076946398,1.31050877,58407.0,58406.0,0.0115555]
[1724076946921,0.1611,58395.0,58391.0,0.0002]
[1724076947218,0.45574877,58395.0,58391.0,0.0002]
[1724076948310,0.2844,58395.0,58391.0,0.0002]
[1724076948514,0.2894,58395.0,58394.0,0.01093924]
[1724076948747,0.2894,58395.0,58394.0,0.18218924]
[1724076949378,0.2733,58401.0,58394.0,0.01093924]
[1724076949823,0.003,58395.0,58394.0,0.52468924]
[1724076950025,0.003,58395.0,58394.0,2.02468924]
[1724076950257,0.003,58395.0,58394.0,1.51093924]
[1724076950463,0.1653,58395.0,58394.0,1.51093924]
[1724076950869,0.1733,58395.0,58394.0,1.51093924]
[1724076951083,0.1703,58395.0,58394.0,1.51093924]
[1724076951535,0.1743,58395.0,58394.0,1.51093924]
[1724076951738,0.1663,58395.0,58394.0,0.01093924]
[1724076951939,0.1623,58395.0,58394.0,0.01093924]
[1724076952351,0.1683,58395.0,58394.0,0.01093924]
[1724076952554,0.1683,58395.0,58394.0,0.18218924]
[1724076952775,0.1663,58395.0,58394.0,0.18218924]
[1724076953457,0.004,58395.0,58394.0,0.18218924]
[1724076953607,0.004,58395.0,58394.0,0.01093924]
[1724076953810,0.762818,58405.0,58394.0,0.01093924]
[1724076954051,0.17134877,58404.0,58394.0,0.01093924]
[1724076954246,0.005,58395.0,58394.0,0.01093924]
[1724076954788,0.003,58395.0,58394.0,0.01093924]
[1724076955127,0.17234877,58404.0,58394.0,0.01193924]
[1724076955334,0.17123,58401.0,58394.0,0.01193924]
[1724076955542,0.001,58395.0,58394.0,0.01193924]
[1724076955722,0.001,58395.0,58394.0,0.01093924]
[1724076955931,0.17234877,58395.0,58394.0,0.01093924]
[1724076956162,0.30304877,58395.0,58394.0,0.01121]
[1724076956640,0.46634877,58395.0,58394.0,0.01121]
[1724076956864,0.46534877,58395.0,58394.0,0.01121]
[1724076957096,0.97909077,58395.0,58394.0,0.01121]
[1724076957289,0.97909077,58395.0,58394.0,0.01021]
[1724076957290,1.32158577,58395.0,58394.0,0.01021]
[1724076957504,1.32158577,58395.0,58394.0,0.00821]
[1724076957732,1.84542954,58395.0,58394.0,0.00821]
[1724076957984,1.85342954,58395.0,58394.0,0.00821]
[1724076958188,1.84842954,58395.0,58394.0,0.00821]
[1724076958385,1.87142954,58395.0,58394.0,0.00821]
[1724076958584,1.67708077,58395.0,58394.0,0.00821]
[1724076958834,1.66908077,58395.0,58394.0,0.00821]
[1724076959182,1.32758577,58395.0,58394.0,0.00821]
[1724076959360,0.64259577,58395.0,58394.0,0.00821]
[1724076959560,0.47034877,58395.0,58394.0,0.00821]
[1724076960171,0.47034877,58395.0,58394.0,0.17946]
[1724076960172,0.005,58395.0,58394.0,0.17946]
[1724076960368,0.005,58395.0,58394.0,0.86446]
[1724076960369,0.019,58395.0,58394.0,0.86446]
[1724076960579,0.019,58395.0,58394.0,2.809731]
[1724076960580,0.005,58395.0,58394.0,2.809731]
[1724076960778,0.3673,58413.0,58394.0,1.953481]
[1724076960779,0.171213,58407.0,58394.0,1.953481]
[1724076960987,0.028,58395.0,58394.0,1.783229]
[1724076961208,0.028,58395.0,58394.0,1.611981]
[1724076961371,0.028,58395.0,58394.0,1.783231]
[1724076961372,0.014,58395.0,58394.0,1.783231]
[1724076961574,0.004,58395.0,58394.0,1.782231]
[1724076961911,0.17134877,58406.0,58394.0,1.782231]
[1724076961912,0.1216,58398.0,58394.0,1.610981]
[1724076962032,0.1216,58398.0,58394.0,1.613981]
[1724076962271,0.1216,58403.0,58395.0,0.171246]
[1724076962532,0.29294877,58403.0,58395.0,0.342492]
[1724076962749,0.1216,58408.0,58396.0,0.002771]
[1724076962948,0.17134877,58407.0,58396.0,0.002771]
[1724076963175,0.17234877,58407.0,58396.0,0.002771]
[1724076963627,0.513724,58397.0,58396.0,0.002771]
[1724076963827,0.514742,58395.0,58394.0,0.00921]
[1724076964031,1.19508577,58395.0,58394.0,6.5e-07]
[1724076964267,1.53758077,58395.0,58394.0,0.003]
[1724076964482,1.15088,58392.0,58391.0,0.0002]
[1724076964679,2.39045334,58392.0,58391.0,0.0002]
[1724076964927,2.39045334,58392.0,58388.0,0.00011]
[1724076964928,1.139125,58389.0,58388.0,0.00011]
[1724076965127,1.84025311,58389.0,58388.0,0.00011]
[1724076965730,1.66790434,58389.0,58388.0,0.00011]
[1724076966779,1.69090434,58389.0,58388.0,0.00011]
[1724076967201,1.32237706,58389.0,58388.0,0.00011]
[1724076967391,0.96394377,58389.0,58388.0,0.00011]
[1724076967691,0.63731871,58389.0,58388.0,0.00011]
[1724076967929,0.47905371,58389.0,58388.0,0.00011]
[1724076968123,0.46314877,58389.0,58388.0,0.00011]
[1724076968315,0.02990685,58389.0,58388.0,0.00011]
[1724076968456,0.014,58389.0,58388.0,0.00011]
[1724076968652,0.1569,58395.0,58388.0,0.00011]
[1724076968853,0.18726059,58394.0,58389.0,0.00281035]
[1724076969055,0.18726059,58394.0,58388.0,0.00011]
[1724076969056,0.88251465,58389.0,58388.0,0.00111]
[1724076969269,1.35067657,58389.0,58388.0,0.00111]
[1724076969470,1.35067657,58389.0,58388.0,0.00011]
[1724076969471,1.33767657,58389.0,58388.0,0.00011]
[1724076969671,1.49401668,58389.0,58388.0,0.00011]
[1724076969854,1.83711814,58389.0,58388.0,0.00111]
[1724076970057,1.89626854,58389.0,58388.0,0.00111]
[1724076970297,1.83711814,58389.0,58388.0,0.00111]
[1724076970524,1.86011814,58389.0,58388.0,0.00111]
[1724076970891,1.66958838,58389.0,58388.0,0.00111]
[1724076971258,1.68358838,58389.0,58388.0,0.00011]
[1724076971472,1.72058838,58389.0,58388.0,0.00111]
[1724076971691,1.87793715,58389.0,58388.0,0.00111]
[1724076971875,1.69401489,58389.0,58388.0,0.00111]
[1724076972121,0.99495489,58389.0,58388.0,0.00011]
[1724076972327,0.99395489,58389.0,58388.0,0.00011]
[1724076972528,1.52583366,58389.0,58388.0,0.00111]
[1724076972753,2.21089366,58389.0,58388.0,0.00111]
[1724076972955,2.21089366,58389.0,58372.0,0.00821]
[1724076972956,0.001,58384.0,58372.0,0.00821]
[1724076973110,1.38721589,58384.0,58372.0,0.00821]
[1724076973510,2.03644033,58384.0,58372.0,0.00821]
[1724076973709,2.15944033,58384.0,58372.0,0.00821]
[1724076973936,2.25698369,58384.0,58372.0,0.00821]
[1724076974365,0.171312,58373.0,58372.0,0.00821]
[1724076974517,0.70119589,58373.0,58372.0,0.00821]
[1724076974718,1.04381989,58373.0,58372.0,0.00821]
[1724076974921,0.70119589,58373.0,58372.0,0.00821]
[1724076975167,1.04381989,58373.0,58372.0,0.00821]
[1724076975794,0.37257189,58373.0,58372.0,0.00821]
[1724076976002,0.18534877,58373.0,58372.0,0.00821]
[1724076976186,0.02989905,58373.0,58372.0,0.686055]
[1724076976459,0.02989905,58373.0,58372.0,0.343425]
[1724076976655,0.04089905,58373.0,58372.0,0.17530472]
[1724076976809,0.025,58373.0,58372.0,2.18924972]
[1724076977049,0.025,58373.0,58372.0,1.67487821]
[1724076977451,0.011,58373.0,58372.0,1.67530472]
[1724076977862,0.024,58373.0,58372.0,1.67530472]
[1724076978064,0.013,58373.0,58372.0,1.67487821]
[1724076978243,0.009,58373.0,58372.0,1.67487821]
[1724076978448,0.009,58373.0,58372.0,1.67530472]
[1724076978648,0.009,58373.0,58372.0,2.18924972]
[1724076978841,0.4676,58383.0,58376.0,0.17172751]
[1724076979065,0.01590142,58382.0,58375.0,0.00042651]
[1724076979315,0.63894877,58383.0,58372.0,0.51750821]
[1724076979316,0.01590142,58381.0,58380.0,0.00042651]
[1724076979519,0.4676,58391.0,58382.0,0.00042651]
[1724076979720,0.9347,58397.0,58387.0,0.1588]
[1724076979721,0.01590325,58390.0,58387.0,0.1588]
[1724076979928,1.248,58397.0,58391.0,0.00042651]
[1724076980077,1.248,58397.0,58387.0,0.1588]
[1724076980078,0.17134877,58394.0,58392.0,0.00275051]
[1724076980286,0.01590445,58393.0,58392.0,0.00275051]
[1724076980494,0.01590452,58393.0,58392.0,0.17443302]
[1724076980693,0.52672783,58403.0,58394.0,0.17167651]
[1724076980694,0.4676,58403.0,58394.0,0.17167651]
[1724076980874,0.4676,58403.0,58394.0,0.98567651]
[1724076981073,0.4676,58403.0,58394.0,1.23377651]
[1724076981254,0.4676,58403.0,58394.0,1.23652702]
[1724076981732,0.4676,58403.0,58394.0,2.73652702]
[1724076981869,0.01490421,58395.0,58394.0,2.73652702]
[1724076982793,0.00090421,58395.0,58394.0,2.73652702]
[1724076983212,0.00090421,58395.0,58394.0,3.59287579]
[1724076983443,0.00090421,58395.0,58394.0,3.27337579]
[1724076984438,0.00390421,58395.0,58394.0,3.27337579]
[1724076984639,0.00090421,58395.0,58394.0,3.27433341]
[1724076984851,0.00090421,58395.0,58394.0,3.62083341]
[1724076985273,0.00190421,58395.0,58394.0,3.62283341]
[1724076985477,0.00290421,58395.0,58394.0,3.27637579]
[1724076985678,0.00190421,58395.0,58394.0,3.27337579]
[1724076985894,0.00190421,58395.0,58394.0,2.39402702]
[1724076985895,0.00090421,58395.0,58394.0,2.39402702]
[1724076986096,0.00190421,58395.0,58394.0,2.73852702]
[1724076986304,0.00290421,58395.0,58394.0,0.55352702]
[1724076986537,0.00290421,58395.0,58394.0,1.23852702]
[1724076986746,0.00290421,58395.0,58394.0,2.73852702]
[1724076986969,0.00290421,58395.0,58394.0,3.25237579]
[1724076987377,0.00290421,58395.0,58394.0,3.25037579]
[1724076987586,0.00190421,58395.0,58394.0,3.25037579]
[1724076987799,0.00190421,58395.0,58394.0,3.25237579]
[1724076988005,0.00290421,58395.0,58394.0,3.27537579]
[1724076988233,0.00190421,58395.0,58394.0,3.27337579]
[1724076988432,0.00290421,58395.0,58394.0,3.27537579]
[1724076988672,0.00190421,58395.0,58394.0,3.27537579]
[1724076988863,0.00290421,58395.0,58394.0,3.27537579]
[1724076989484,0.00290421,58395.0,58394.0,0.15285051]
[1724076989680,0.17415121,58395.0,58394.0,0.00475051]
[1724076989872,0.00290421,58395.0,58394.0,0.00475051]
[1724076990209,0.00290421,58395.0,58394.0,0.002]
[1724076990615,0.00290421,58395.0,58394.0,0.00435127]
[1724076991268,0.00090421,58395.0,58394.0,0.00235127]
[1724076991696,0.00490421,58395.0,58394.0,0.17125]
[1724076991901,0.00490421,58395.0,58394.0,1.01362778]
[1724076992069,0.00090421,58395.0,58394.0,1.13632778]
[1724076992246,0.00090421,58395.0,58394.0,0.89382778]
[1724076992471,0.00090421,58395.0,58394.0,0.15695127]
[1724076992472,0.00490421,58395.0,58394.0,0.15695127]
[1724076992747,0.00490421,58395.0,58394.0,0.00235127]
[1724076992748,0.96449498,58395.0,58394.0,0.00235127]
[1724076992887,1.67428998,58395.0,58394.0,0.00235127]
[1724076993106,0.82205298,58395.0,58378.0,0.1546]
[1724076993290,0.52969873,58394.0,58378.0,0.1546]
[1724076993499,0.171262,58390.0,58379.0,0.00235127]
[1724076993704,0.17134877,58390.0,58379.0,0.00235127]
[1724076993906,0.171266,58389.0,58379.0,0.00235127]
[1724076994110,0.65070421,58395.0,58379.0,0.00235127]
[1724076994111,0.28340421,58395.0,58379.0,0.00235127]
[1724076994461,0.28340421,58395.0,58389.0,0.1608]
[1724076994462,0.00090421,58395.0,58389.0,0.1608]
[1724076994881,0.00490421,58395.0,58390.0,0.00242887]
[1724076995290,0.18615221,58395.0,58384.0,0.16072651]
[1724076995492,0.51384977,58394.0,58384.0,0.1603]
[1724076995701,0.856367,58386.0,58385.0,0.00242887]
[1724076995947,0.17134877,58386.0,58385.0,0.00242887]
[1724076996142,0.17134877,58386.0,58378.0,0.10042651]
[1724076996349,0.17134877,58386.0,58379.0,0.00242887]
[1724076996788,0.1265,58393.0,58380.0,0.1636]
[1724076996992,0.01890421,58395.0,58380.0,0.1636]
[1724076997199,0.01890421,58395.0,58385.0,0.00042651]
[1724076997405,0.01890421,58395.0,58388.0,0.171266]
[1724076997611,0.00790421,58395.0,58387.0,0.171269]
[1724076997819,0.00790421,58395.0,58386.0,0.342547]
[1724076998032,0.00090421,58395.0,58388.0,0.00251819]
[1724076998246,0.00090421,58395.0,58389.0,0.17169151]
[1724076998476,0.00090421,58395.0,58390.0,0.1]
[1724076998686,0.01190421,58395.0,58390.0,0.1]
[1724076998891,0.342507,58393.0,58386.0,0.00042651]
[1724076999098,0.47370477,58392.0,58391.0,0.00251819]
[1724076999311,0.30344877,58392.0,58379.0,0.1]
[1724076999516,0.30344877,58392.0,58376.0,0.1]
[1724076999517,0.30244877,58392.0,58376.0,0.1]
[1724076999733,0.1311,58392.0,58380.0,0.1737841]
[1724076999957,0.1311,58392.0,58380.0,0.17129]
[1724076999958,0.302357,58392.0,58380.0,0.17129]
[1724077000161,0.17134877,58391.0,58381.0,0.0024941]
[1724077000368,0.342525,58390.0,58378.0,0.1]
[1724077000597,0.342525,58390.0,58372.0,0.00821]
[1724077000598,0.171312,58373.0,58372.0,0.00821]
[1724077000802,1.17620877,58373.0,58372.0,0.00821]
[1724077001007,0.49096077,58373.0,58372.0,0.00821]
[1724077001211,0.31964877,58373.0,58372.0,0.00821]
[1724077001419,0.17134877,58373.0,58372.0,0.00821]
[1724077001641,0.1239,58374.0,58372.0,0.00821]
[1724077001850,0.171312,58373.0,58372.0,0.00821]
[1724077002055,0.34265277,58376.0,58372.0,0.00821]
[1724077002267,0.014,58373.0,58372.0,0.00821]
[1724077002520,0.014,58373.0,58372.0,0.179525]
[1724077002726,0.295074,58386.0,58375.0,0.17173151]
[1724077002941,0.1238,58386.0,58375.0,0.00042651]
[1724077003147,0.002902,58392.0,58376.0,0.15722602]
[1724077003148,0.000902,58392.0,58376.0,0.15722602]
[1724077003359,0.17225077,58392.0,58385.0,0.1538]
[1724077003599,0.000902,58392.0,58389.0,0.00042651]
[1724077003803,0.000902,58392.0,58386.0,1.5023694]
[1724077004016,0.000902,58392.0,58389.0,0.00042651]
[1724077004249,0.000902,58392.0,58391.0,0.17168551]
[1724077004454,0.000902,58392.0,58391.0,0.2538]
[1724077004664,0.01447539,58392.0,58391.0,1.7561694]
[1724077005077,0.00047539,58392.0,58391.0,2.2699464]
[1724077005491,0.01747539,58392.0,58391.0,1.9274284]
[1724077005693,0.00447539,58392.0,58391.0,2.2699464]
[1724077006103,0.00347539,58392.0,58391.0,2.6124644]
[1724077006314,0.00347539,58392.0,58391.0,3.14975768]
[1724077006749,0.00347539,58392.0,58391.0,3.61717568]
[1724077007157,0.00090421,58395.0,58394.0,1.54125]
[1724077007380,0.00090421,58395.0,58394.0,2.01502528]
[1724077007616,0.00090421,58395.0,58394.0,2.11739468]
[1724077008456,0.00190421,58395.0,58394.0,2.11739468]
[1724077009112,0.00090421,58395.0,58394.0,2.11739468]
[1724077009318,0.00190421,58395.0,58394.0,2.11739468]
[1724077009520,0.00290421,58395.0,58394.0,2.1193523]
[1724077009725,0.00190421,58395.0,58394.0,2.1213523]
[1724077010564,0.00090421,58395.0,58394.0,2.1213523]
[1724077010768,0.00090421,58395.0,58394.0,3.6203523]
[1724077010999,0.00190421,58395.0,58394.0,3.6203523]
[1724077011238,0.00290421,58395.0,58394.0,3.6263523]
[1724077011445,0.00090421,58395.0,58394.0,3.6203523]
[1724077011645,0.00090421,58395.0,58394.0,3.6273523]
[1724077011878,0.00290421,58395.0,58394.0,3.9688523]
[1724077012083,0.00290421,58395.0,58394.0,3.9698523]
[1724077012294,0.17114,58432.0,58406.0,1.48413151]
[1724077012295,0.1317,58432.0,58406.0,1.48413151]
[1724077012546,0.1317,58432.0,58406.0,2.12091028]
[1724077012771,0.1317,58432.0,58406.0,2.12419561]
[1724077013002,0.1317,58432.0,58406.0,3.62419561]
[1724077013221,0.1317,58432.0,58406.0,4.00487323]
[1724077013430,0.1317,58432.0,58406.0,3.62419561]
[1724077013645,0.1317,58432.0,58406.0,3.62715323]
[1724077014503,0.1317,58432.0,58406.0,3.66144323]
[1724077014703,0.1317,58432.0,58406.0,3.66744323]
[1724077014704,0.00190421,58407.0,58406.0,3.66744323]
[1724077014903,0.00190421,58407.0,58406.0,3.67734468]
[1724077015141,0.00190421,58407.0,58406.0,3.67934468]
[1724077015345,0.00090421,58407.0,58406.0,3.67134468]
[1724077015548,0.00190421,58407.0,58406.0,3.67438706]
[1724077015752,0.00290421,58407.0,58406.0,3.69034468]
[1724077015925,0.00290421,58407.0,58406.0,3.69134468]
[1724077016361,0.00290421,58407.0,58406.0,3.68838706]
[1724077016565,0.00290421,58407.0,58406.0,3.69034468]
[1724077016973,0.00290421,58407.0,58406.0,3.65605468]
[1724077017183,0.00290421,58407.0,58406.0,2.3647791]
[1724077017597,0.00290421,58407.0,58406.0,2.20499377]
[1724077018026,0.00190421,58407.0,58406.0,1.506]
[1724077018228,0.00090421,58407.0,58397.0,0.00042651]
[1724077018432,0.00190421,58407.0,58406.0,0.014]
[1724077018626,0.00290421,58407.0,58406.0,0.02]
[1724077019042,0.00190421,58407.0,58406.0,0.014]
[1724077019162,0.00090421,58407.0,58403.0,0.00042651]
[1724077019363,0.00090421,58407.0,58406.0,0.001]
[1724077020085,0.00090421,58407.0,58406.0,0.17264151]